bitfinex-derivatives/quotes_BTCF0:USTF0_20250207
["timestamp","ask_amount","ask_price","bid_price","bid_amount"]
[1738939321714,0.2002282,99841.0,99840.0,0.00015024]
[1738939322525,0.004,99853.0,99840.0,0.00015024]
[1738939322725,0.004,99853.0,99851.0,0.2002067]
[1738939323231,0.00015024,99860.0,99859.0,0.2001921]
[1738939323422,0.00015024,99860.0,99859.0,0.5609921]
[1738939324222,0.00015024,99860.0,99859.0,0.3608]
[1738939324522,0.00015024,99860.0,99859.0,0.3618]
[1738939325815,0.00015024,99860.0,99859.0,0.3628]
[1738939326244,0.00015024,99860.0,99859.0,0.5629921]
[1738939326627,0.00015024,99860.0,99859.0,0.3628]
[1738939329235,0.20034034,99860.0,99859.0,0.3628]
[1738939330030,0.00015024,99860.0,99859.0,0.3628]
[1738939332037,0.00015024,99860.0,99859.0,0.5629921]
[1738939332728,0.1612,99889.0,99861.0,0.2001881]
[1738939332928,0.2001472,99882.0,99881.0,0.2001457]
[1738939333232,0.1641,99899.0,99881.0,0.3608]
[1738939333430,0.1641,99899.0,99898.0,0.3608]
[1738939334235,0.1641,99899.0,99889.0,0.36095015]
[1738939334438,0.20013,99890.0,99889.0,0.36095015]
[1738939334635,0.20013,99890.0,99889.0,0.00015015]
[1738939334832,0.20013,99890.0,99889.0,0.36095015]
[1738939335134,0.1641,99899.0,99891.0,0.2001275]
[1738939335135,0.2001183,99896.0,99891.0,0.2001275]
[1738939335337,0.1,99900.0,99897.0,0.2001156]
[1738939335634,0.1,99900.0,99899.0,0.3608]
[1738939336234,0.30011,99900.0,99899.0,0.3608]
[1738939336841,0.1,99900.0,99899.0,0.3618]
[1738939337134,0.1,99900.0,99899.0,0.3628]
[1738939339139,0.00619608,99900.0,99899.0,0.3628]
[1738939339346,0.200057,99927.0,99925.0,0.2000595]
[1738939339537,0.200057,99927.0,99926.0,0.3608]
[1738939339733,0.312,99936.0,99926.0,0.3608]
[1738939339937,0.5120379,99936.0,99935.0,0.3608]
[1738939340447,0.2000559,99927.0,99926.0,0.36163015]
[1738939340644,0.2000559,99927.0,99926.0,0.36095015]
[1738939340940,0.2000559,99927.0,99926.0,0.00115015]
[1738939341445,0.200102,99904.0,99893.0,0.3608]
[1738939341638,0.0500151,99925.0,99902.0,0.3608]
[1738939341639,0.1621,99903.0,99902.0,0.3608]
[1738939341839,0.17332166,99930.0,99910.0,0.2000894]
[1738939342140,0.0500113,99933.0,99910.0,0.3608]
[1738939342141,0.2000863,99912.0,99910.0,0.3608]
[1738939342335,0.1621,99932.0,99910.0,0.3608]
[1738939342541,0.2000699,99920.0,99919.0,0.3608]
[1738939343952,0.2000699,99920.0,99919.0,0.3628]
[1738939345748,0.2000699,99920.0,99919.0,0.002]
[1738939346248,0.00015015,99921.0,99919.0,0.3628]
[1738939346547,0.00015015,99921.0,99919.0,0.562872]
[1738939347148,0.20021825,99921.0,99919.0,0.562872]
[1738939347538,0.00015015,99921.0,99919.0,0.562872]
[1738939347735,0.00015015,99921.0,99919.0,0.3628]
[1738939348055,0.00015015,99921.0,99920.0,0.2000699]
[1738939348554,0.00215015,99921.0,99920.0,0.2000699]
[1738939349156,0.1539,99949.0,99919.0,0.3618]
[1738939349357,0.2000259,99942.0,99941.0,0.3608]
[1738939349541,0.1539,99949.0,99927.0,0.3608]
[1738939349743,0.2000539,99928.0,99927.0,0.3608]
[1738939349945,0.1539,99949.0,99927.0,0.3608]
[1738939350138,0.2000453,99933.0,99932.0,0.2000456]
[1738939350344,0.2000342,99938.0,99937.0,0.2000354]
[1738939350539,0.2000342,99938.0,99937.0,0.3608]
[1738939351147,0.2000499,99930.0,99929.0,0.3608]
[1738939351352,0.2000499,99930.0,99929.0,0.5608519]
[1738939351549,0.0500046,99946.0,99929.0,0.3608]
[1738939351855,0.2000403,99936.0,99935.0,0.2000399]
[1738939352156,0.1559,99949.0,99939.0,0.2000309]
[1738939352350,0.2000219,99944.0,99943.0,0.3608]
[1738939352953,0.2000043,99953.0,99943.0,0.3608]
[1738939353250,0.1529,99956.0,99943.0,0.3608]
[1738939353251,0.1529,99956.0,99944.0,0.3608]
[1738939353558,0.2000199,99945.0,99944.0,0.3608]
[1738939354752,0.2000199,99945.0,99943.0,0.01202156]
[1738939355243,0.2000199,99945.0,99943.0,0.37282156]
[1738939355551,0.2000199,99945.0,99944.0,0.001]
[1738939356144,0.2000199,99945.0,99944.0,0.002]
[1738939356449,0.3608,99952.0,99911.0,0.3608]
[1738939356647,0.2000519,99929.0,99923.0,0.3608]
[1738939356949,0.2000519,99929.0,99928.0,1e-08]
[1738939357547,0.2000519,99929.0,99928.0,0.36080001]
[1738939357743,0.2000396,99936.0,99928.0,0.36080001]
[1738939357949,0.1573,99937.0,99928.0,0.36080001]
[1738939358149,0.3573359,99937.0,99936.0,0.3608]
[1738939358446,0.2000519,99929.0,99928.0,1e-08]
[1738939360244,0.2020519,99929.0,99928.0,1e-08]
[1738939361051,0.002,99929.0,99928.0,0.36080001]
[1738939361260,0.002,99929.0,99928.0,0.56085391]
[1738939362557,0.002,99929.0,99928.0,0.84085391]
[1738939362947,0.002,99929.0,99928.0,0.99015391]
[1738939364247,0.00184986,99929.0,99928.0,0.99015391]
[1738939365249,0.00015014,99938.0,99937.0,0.2000359]
[1738939365453,0.00015014,99938.0,99937.0,0.5608359]
[1738939366557,0.00015014,99938.0,99937.0,0.5618359]
[1738939366857,0.00015014,99938.0,99937.0,0.57281857]
[1738939366858,0.00115014,99938.0,99937.0,0.57281857]
[1738939367851,0.20118404,99938.0,99937.0,0.37278267]
[1738939368054,0.00115014,99938.0,99937.0,0.37278267]
[1738939368459,0.00115014,99938.0,99937.0,0.57281857]
[1738939369951,0.20118404,99938.0,99937.0,0.57281857]
[1738939371351,0.00115014,99938.0,99928.0,0.36140001]
[1738939371551,0.2000519,99929.0,99928.0,1e-08]
[1738939372451,0.2000519,99929.0,99928.0,0.00100001]
[1738939372655,0.200074,99918.0,99917.0,0.3608]
[1738939375463,0.002,99918.0,99917.0,0.3608]
[1738939376255,0.002,99918.0,99917.0,0.37089856]
[1738939376753,0.00015014,99938.0,99917.0,0.37089856]
[1738939377049,0.00015014,99938.0,99937.0,0.3608]
[1738939378764,0.00115014,99938.0,99937.0,0.3618]
[1738939379262,0.20118404,99938.0,99937.0,0.3618]
[1738939380359,0.20118404,99938.0,99937.0,0.002]
[1738939380570,0.2000499,99930.0,99928.0,0.3608]
[1738939381348,0.3219,99929.0,99928.0,0.3608]
[1738939381558,0.3219,99929.0,99923.0,0.01008637]
[1738939381860,0.2000719,99919.0,99918.0,0.3608]
[1738939382162,0.200088,99911.0,99910.0,0.37079694]
[1738939382555,0.2000712,99920.0,99910.0,0.37079694]
[1738939382762,0.1603,99929.0,99928.0,0.2000539]
[1738939382962,0.1603,99929.0,99928.0,0.5608539]
[1738939383459,0.001,99930.0,99929.0,0.2000519]
[1738939383659,0.04880238,99938.0,99935.0,0.2000395]
[1738939383959,0.04880238,99938.0,99937.0,0.3608]
[1738939383960,0.24883738,99938.0,99937.0,0.3608]
[1738939384362,0.40854779,99938.0,99937.0,0.3608]
[1738939384963,0.2000519,99929.0,99928.0,0.3618]
[1738939385469,0.2000519,99929.0,99928.0,0.3608]
[1738939386375,0.2000619,99924.0,99923.0,0.01008929]
[1738939386567,0.2000779,99916.0,99915.0,0.3608]
[1738939386759,0.003,99929.0,99915.0,0.3608]
[1738939386960,0.2000666,99922.0,99915.0,0.3608]
[1738939387164,0.003,99929.0,99915.0,0.3608]
[1738939387359,0.003,99929.0,99918.0,0.2000738]
[1738939387564,0.003,99929.0,99915.0,0.3608]
[1738939387565,0.003,99929.0,99924.0,0.2000612]
[1738939387868,0.2000523,99929.0,99925.0,0.200059]
[1738939388071,0.2000571,99927.0,99923.0,0.3608]
[1738939388265,0.14959256,99933.0,99925.0,0.2000599]
[1738939388570,0.2000559,99927.0,99923.0,0.3608]
[1738939388763,0.2000585,99926.0,99923.0,0.3608]
[1738939388956,0.2000619,99924.0,99923.0,0.3608]
[1738939389160,0.001,99929.0,99928.0,0.2000539]
[1738939389369,0.001,99929.0,99924.0,0.2000619]
[1738939389555,0.2000619,99924.0,99923.0,0.3608]
[1738939389761,0.001,99929.0,99926.0,0.2000566]
[1738939389965,0.2000502,99930.0,99928.0,0.2000531]
[1738939390267,0.001,99924.0,99923.0,0.3608]
[1738939390459,0.2010619,99924.0,99923.0,0.3608]
[1738939390860,0.200078,99916.0,99915.0,0.01002333]
[1738939391063,0.1587,99923.0,99915.0,0.3608]
[1738939391270,0.14959256,99932.0,99922.0,0.2000659]
[1738939391271,0.2000619,99924.0,99922.0,0.2000659]
[1738939391569,0.001,99930.0,99929.0,0.2000519]
[1738939391954,0.001,99930.0,99923.0,0.3608]
[1738939392160,0.2000619,99924.0,99923.0,0.3608]
[1738939392566,0.2010619,99924.0,99923.0,0.3608]
[1738939392767,0.2020619,99924.0,99923.0,0.3608]
[1738939393663,0.20008,99915.0,99914.0,0.3608]
[1738939395071,0.2000686,99921.0,99917.0,0.2000753]
[1738939395269,0.001,99924.0,99917.0,0.2000753]
[1738939395577,0.2000783,99916.0,99914.0,0.3608]
[1738939395965,0.200092,99909.0,99908.0,0.01013208]
[1738939396170,0.05644,99913.0,99887.0,0.3608]
[1738939396369,0.200134,99888.0,99887.0,0.3608]
[1738939396570,0.410826,99903.0,99874.0,0.3608]
[1738939396571,0.2001555,99878.0,99874.0,0.3608]
[1738939396768,0.1561,99887.0,99877.0,0.3608]
[1738939396968,0.2001432,99884.0,99877.0,0.3608]
[1738939397273,0.1561,99887.0,99877.0,0.3608]
[1738939397474,0.2001533,99879.0,99877.0,0.3608]
[1738939398671,0.200145,99883.0,99877.0,0.3608]
[1738939398977,0.2001601,99875.0,99874.0,0.009]
[1738939399165,0.3608,99875.0,99864.0,0.10231471]
[1738939399368,0.3608,99875.0,99829.0,0.155]
[1738939399369,0.2001962,99857.0,99829.0,0.155]
[1738939399671,0.2001962,99857.0,99848.0,0.54752237]
[1738939399867,0.17331892,99870.0,99848.0,0.34791017]
[1738939400171,0.2001865,99862.0,99849.0,0.01039809]
[1738939400564,0.2001865,99862.0,99853.0,0.00015015]
[1738939401073,0.00015015,99873.0,99872.0,0.2001661]
[1738939401283,1e-08,99873.0,99872.0,0.5609661]
[1738939401479,0.001,99875.0,99874.0,0.2001621]
[1738939401674,0.14959256,99883.0,99874.0,0.2001621]
[1738939402178,0.14959256,99883.0,99872.0,0.3608]
[1738939402481,0.14959256,99883.0,99881.0,0.5609479]
[1738939403072,0.14959256,99883.0,99881.0,0.2001479]
[1738939404478,0.00015015,99887.0,99886.0,0.200138]
[1738939405776,0.00015015,99887.0,99886.0,0.211138]
[1738939407169,0.14959256,99906.0,99886.0,0.011]
[1738939407371,0.14959256,99906.0,99903.0,0.3608]
[1738939407570,0.14959256,99906.0,99903.0,0.5609034]
[1738939407771,0.34969236,99906.0,99898.0,0.2001126]
[1738939407975,0.2001106,99900.0,99894.0,0.3608]
[1738939408576,0.001,99906.0,99894.0,0.3608]
[1738939408882,0.005,99906.0,99905.0,0.3608]
[1738939409279,0.004,99906.0,99905.0,0.3608]
[1738939409479,0.005,99906.0,99905.0,0.3608]
[1738939410184,0.005,99906.0,99905.0,0.2001]
[1738939410380,0.005,99906.0,99902.0,0.3608]
[1738939411279,0.001,99906.0,99902.0,0.3608]
[1738939411585,0.001,99906.0,99902.0,0.56901299]
[1738939411586,0.004,99906.0,99902.0,0.56901299]
[1738939412085,0.00015015,99907.0,99902.0,0.36890839]
[1738939412386,0.004,99906.0,99905.0,0.200099]
[1738939412783,0.003,99906.0,99905.0,0.200099]
[1738939413682,0.2001022,99904.0,99902.0,0.0006]
[1738939413887,0.200125,99893.0,99888.0,0.3608]
[1738939414190,0.3608,99904.0,99888.0,0.3608]
[1738939414488,0.200132,99890.0,99888.0,0.5609327]
[1738939414683,0.3608,99904.0,99889.0,0.2001308]
[1738939415381,0.3638,99904.0,99888.0,0.37406314]
[1738939415583,0.2031029,99904.0,99888.0,0.36906314]
[1738939415886,0.003,99904.0,99899.0,0.3608]
[1738939416082,0.003,99904.0,99902.0,0.2001055]
[1738939416294,0.004,99904.0,99902.0,0.2001055]
[1738939416495,0.20011,99900.0,99899.0,0.3608]
[1738939416987,0.200132,99889.0,99888.0,0.36906314]
[1738939417185,0.004,99904.0,99871.0,0.1604]
[1738939417186,0.3608,99898.0,99871.0,0.1604]
[1738939417381,0.2001541,99878.0,99869.0,0.200172]
[1738939417686,0.2001541,99878.0,99868.0,0.3608]
[1738939417687,0.2001443,99883.0,99878.0,0.2001534]
[1738939417890,0.2001489,99881.0,99877.0,0.36891368]
[1738939418088,0.1504,99888.0,99877.0,0.36891368]
[1738939418481,0.2001488,99881.0,99877.0,0.37791368]
[1738939418682,0.1504,99888.0,99877.0,0.37791368]
[1738939418882,0.2001531,99879.0,99877.0,0.37791368]
[1738939419083,0.2001531,99879.0,99877.0,0.37691368]
[1738939419480,0.1504,99888.0,99883.0,0.2001432]
[1738939419685,0.2001414,99885.0,99877.0,0.57706928]
[1738939419992,0.2001447,99883.0,99877.0,0.57706928]
[1738939420291,0.2001534,99879.0,99877.0,0.37691368]
[1738939420490,0.1504,99888.0,99877.0,0.37691368]
[1738939420491,0.001,99881.0,99877.0,0.38491368]
[1738939420685,0.001,99881.0,99880.0,0.2001501]
[1738939421294,0.2001207,99895.0,99885.0,0.2001388]
[1738939421493,0.00802199,99906.0,99890.0,0.3608]
[1738939421994,0.14959256,99893.0,99892.0,0.5609247]
[1738939422997,0.14959256,99893.0,99892.0,0.4766247]
[1738939423995,0.14959256,99893.0,99892.0,0.2765]
[1738939424201,0.14959256,99893.0,99834.0,0.3623]
[1738939424202,0.14959256,99893.0,99871.0,0.3281]
[1738939424493,0.2001487,99881.0,99871.0,0.3281]
[1738939424690,0.20014,99885.0,99871.0,0.3281]
[1738939424888,0.20014,99885.0,99876.0,0.2001569]
[1738939425087,0.20014,99885.0,99871.0,0.3281]
[1738939425400,0.14974271,99907.0,99882.0,0.3608]
[1738939425601,0.14974271,99907.0,99906.0,0.3608]
[1738939426388,0.14974271,99907.0,99899.0,0.1635]
[1738939426699,0.2001081,99901.0,99899.0,0.1635]
[1738939426902,0.2001119,99899.0,99898.0,0.3608]
[1738939427098,0.14974271,99907.0,99884.0,0.3608]
[1738939427398,0.3608,99898.0,99884.0,0.3608]
[1738939427599,0.2001106,99900.0,99889.0,0.2001313]
[1738939427795,0.2001125,99899.0,99889.0,0.2001313]
[1738939427995,0.14974271,99907.0,99898.0,0.001]
[1738939428299,0.2011119,99899.0,99898.0,0.001]
[1738939428494,0.2011119,99899.0,99898.0,0.3608]
[1738939428495,0.001,99899.0,99898.0,0.3608]
[1738939428891,0.001,99899.0,99898.0,0.8719]
[1738939429087,0.00215015,99907.0,99906.0,0.2000979]
[1738939429295,0.00215015,99907.0,99906.0,0.5608979]
[1738939429801,0.00215015,99907.0,99906.0,0.3608]
[1738939430592,0.00215015,99907.0,99898.0,0.00804819]
[1738939430593,0.00615015,99907.0,99898.0,0.00804819]
[1738939430792,0.2001071,99902.0,99898.0,0.001]
[1738939431193,0.2001108,99900.0,99898.0,0.001]
[1738939431398,0.00415015,99907.0,99896.0,0.3608]
[1738939431695,0.2001159,99897.0,99896.0,0.3608]
[1738939432895,0.00415015,99907.0,99896.0,0.3608]
[1738939433197,0.00415015,99907.0,99904.0,0.3608]
[1738939433392,0.00315015,99907.0,99904.0,0.3608]
[1738939433595,0.00315015,99907.0,99905.0,0.2000992]
[1738939434098,0.00015015,99907.0,99905.0,0.2000992]
[1738939434299,0.00415015,99907.0,99905.0,0.2000992]
[1738939434497,0.00615015,99907.0,99905.0,0.2000992]
[1738939434699,0.00615015,99907.0,99904.0,0.3608]
[1738939435200,0.00415015,99907.0,99906.0,0.2000979]
[1738939436703,0.00015015,99907.0,99906.0,0.2000979]
[1738939437495,0.00015015,99907.0,99906.0,0.2020979]
[1738939437699,0.00015015,99907.0,99906.0,0.004]
[1738939439503,0.00015015,99907.0,99873.0,0.5144]
[1738939439709,0.2001368,99887.0,99881.0,0.2001478]
[1738939439909,0.2001181,99896.0,99876.0,0.2001578]
[1738939440102,0.11547386,99890.0,99876.0,0.2001578]
[1738939440298,0.1557,99895.0,99877.0,0.00833097]
[1738939440610,0.1619,99894.0,99881.0,0.5609477]
[1738939440804,0.2001384,99886.0,99885.0,0.009]
[1738939441200,0.5609384,99886.0,99885.0,0.011]
[1738939441400,0.5609384,99886.0,99877.0,0.00015015]
[1738939441401,0.3608,99886.0,99877.0,0.00015015]
[1738939441705,0.560954,99878.0,99877.0,1e-08]
[1738939441911,0.200154,99878.0,99877.0,1e-08]
[1738939442213,0.560954,99878.0,99877.0,1e-08]
[1738939443600,0.560954,99878.0,99870.0,0.17535034]
[1738939443601,0.6618,99878.0,99870.0,0.17535034]
[1738939443802,0.2002121,99849.0,99843.0,0.3608]
[1738939444111,0.2002121,99849.0,99848.0,0.30123072]
[1738939444300,0.2001954,99858.0,99848.0,0.30123072]
[1738939444704,0.2001954,99858.0,99848.0,0.00805091]
[1738939444906,0.1613,99859.0,99847.0,0.5610142]
[1738939445104,0.3608,99858.0,99847.0,0.36882428]
[1738939445400,0.2002141,99848.0,99847.0,0.00802428]
[1738939445605,0.200201,99855.0,99844.0,0.3608]
[1738939446103,0.2002113,99850.0,99843.0,0.00015015]
[1738939446414,0.2002202,99845.0,99843.0,0.00015015]
[1738939446803,0.2002202,99845.0,99843.0,0.00847096]
[1738939447009,0.2002202,99845.0,99843.0,0.00015015]
[1738939447710,0.013,99845.0,99843.0,0.00115015]
[1738939448007,0.013,99845.0,99843.0,0.20137335]
[1738939449103,0.013,99845.0,99843.0,0.00115015]
[1738939449299,0.2132215,99845.0,99843.0,0.00115015]
[1738939451912,0.013,99845.0,99843.0,0.20137375]
[1738939452111,0.00015015,99863.0,99861.0,0.200188]
[1738939452304,0.00015015,99863.0,99861.0,0.921788]
[1738939452511,0.0252436,99862.0,99861.0,0.921788]
[1738939453018,0.0252436,99862.0,99861.0,1.191788]
[1738939453214,0.0342436,99862.0,99861.0,1.192788]
[1738939453913,0.17951108,99873.0,99872.0,0.2001659]
[1738939454109,0.3608,99900.0,99872.0,0.2001659]
[1738939454110,0.00052001,99900.0,99891.0,0.2001279]
[1738939454410,0.2016286,99892.0,99891.0,0.3608]
[1738939454717,0.3623027,99892.0,99874.0,0.1552]
[1738939454915,0.3623027,99892.0,99872.0,0.3608]
[1738939454916,0.2001473,99882.0,99872.0,0.3608]
[1738939455214,0.00206271,99892.0,99873.0,0.00015023]
[1738939455413,0.00206271,99892.0,99891.0,0.004]
[1738939455414,0.0015027,99892.0,99891.0,0.004]
[1738939457015,0.0015027,99892.0,99891.0,0.007]
[1738939457512,0.4743027,99892.0,99891.0,0.003]
[1738939458412,0.4743027,99892.0,99891.0,0.007]
[1738939460120,0.17327388,99950.0,99891.0,1.08492]
[1738939460314,0.3608,99963.0,99940.0,0.3608]
[1738939460315,0.2000267,99942.0,99940.0,0.3608]
[1738939460515,0.2000371,99937.0,99935.0,0.3608]
[1738939461328,0.51056001,99941.0,99938.0,0.2000335]
[1738939461525,0.51,99941.0,99938.0,0.2000335]
[1738939461727,0.51,99941.0,99935.0,0.3608]
[1738939462019,0.51,99941.0,99940.0,0.001]
[1738939463227,0.514,99941.0,99940.0,0.001]
[1738939463626,0.514,99941.0,99938.0,0.001]
[1738939464022,0.514,99941.0,99935.0,0.5608393]
[1738939464627,0.51,99941.0,99935.0,0.3608]
[1738939465630,0.00819392,99944.0,99935.0,0.3608]
[1738939465828,0.1999965,99957.0,99935.0,0.3608]
[1738939466129,0.51,99936.0,99935.0,0.3608]
[1738939467624,0.7100377,99936.0,99935.0,0.3618]
[1738939468426,0.7100377,99936.0,99935.0,0.001]
[1738939468628,0.7100377,99936.0,99901.0,0.3608]
[1738939468629,0.200085,99913.0,99909.0,0.3608]
[1738939468931,0.1668,99935.0,99909.0,0.3608]
[1738939469125,0.1668,99935.0,99926.0,0.3608]
[1738939469332,0.1668,99935.0,99914.0,0.3608]
[1738939469333,0.1668,99935.0,99923.0,0.3608]
[1738939469722,0.2000618,99924.0,99923.0,0.3608]
[1738939471123,0.2000618,99924.0,99923.0,0.3628]
[1738939471427,0.2000618,99924.0,99923.0,0.002]
[1738939471633,0.2001018,99904.0,99903.0,0.3608]
[1738939472022,0.7101018,99904.0,99903.0,0.3608]
[1738939473930,0.2001198,99895.0,99894.0,0.00015008]
[1738939474633,0.7101198,99895.0,99894.0,0.00015008]
[1738939474930,0.0112945,99904.0,99894.0,0.00015008]
[1738939475121,0.002,99904.0,99903.0,0.5609038]
[1738939475322,0.002,99904.0,99903.0,0.3608]
[1738939476724,0.0500034,99949.0,99912.0,0.2000858]
[1738939476921,0.05628,99939.0,99912.0,0.3608]
[1738939477129,0.2000393,99936.0,99934.0,0.3608]
[1738939478027,0.35458623,99941.0,99934.0,0.3608]
[1738939478231,0.002,99939.0,99934.0,0.3608]
[1738939478428,0.002,99939.0,99938.0,0.3608]
[1738939479728,0.17839558,99941.0,99938.0,0.3608]
[1738939479922,0.2000312,99940.0,99938.0,0.3608]
[1738939480319,0.002,99939.0,99938.0,0.3608]
[1738939481038,0.2000312,99940.0,99938.0,0.3608]
[1738939481434,0.002,99941.0,99938.0,0.3608]
[1738939481628,0.002,99939.0,99938.0,0.3608]
[1738939482631,0.002,99939.0,99938.0,0.5216]
[1738939483133,0.51052001,99944.0,99938.0,0.5216]
[1738939483341,0.002,99940.0,99939.0,0.2000317]
[1738939483730,0.51052001,99944.0,99938.0,0.52236]
[1738939483937,0.002,99939.0,99938.0,0.5216]
[1738939484140,0.002,99939.0,99938.0,0.53022052]
[1738939485629,0.00015,99945.0,99938.0,0.83022052]
[1738939485835,0.17989714,99959.0,99958.0,0.1999937]
[1738939486035,0.17989714,99959.0,99958.0,0.5607937]
[1738939486434,0.17989714,99959.0,99958.0,0.3608]
[1738939486635,0.37988884,99959.0,99958.0,0.3608]
[1738939486836,0.17989714,99959.0,99958.0,0.3608]
[1738939487140,0.17989714,99959.0,99958.0,0.5607937]
[1738939487341,0.00150156,99959.0,99958.0,0.5607937]
[1738939487748,0.00150156,99959.0,99958.0,0.5617937]
[1738939488040,0.14916053,99963.0,99962.0,0.1999857]
[1738939488342,0.17839558,99975.0,99974.0,0.1999617]
[1738939488544,0.199923,99994.0,99974.0,0.3608]
[1738939488744,0.199923,99994.0,99993.0,0.7216]
[1738939488745,0.1999217,99994.0,99993.0,0.7216]
[1738939489343,0.20836265,99997.0,99993.0,0.7216]
[1738939489540,0.20836265,99997.0,99995.0,0.1999193]
[1738939492550,0.20836265,99997.0,99995.0,0.2009193]
[1738939492748,0.40827995,99997.0,99995.0,0.001]
[1738939492957,0.20836265,99997.0,99995.0,0.001]
[1738939493164,0.1,100000.0,99999.0,0.1999117]
[1738939495462,0.1,100000.0,99999.0,0.20822352]
[1738939499155,0.09399556,100000.0,99999.0,0.20822352]
[1738939500257,0.09399556,100000.0,99993.0,0.72236]
[1738939500455,0.1999217,99994.0,99993.0,0.7216]
[1738939500960,0.1616,99999.0,99993.0,0.7216]
[1738939501261,0.1616,99999.0,99998.0,0.1999137]
[1738939501463,0.09399556,100000.0,99998.0,0.1999137]
[1738939502364,0.1616,100020.0,100010.0,0.1998898]
[1738939502554,0.1616,100020.0,100010.0,1.09476368]
[1738939502756,0.20131341,100050.0,100040.0,0.1998298]
[1738939502968,0.20992704,100050.0,100040.0,0.9214298]
[1738939503268,0.20992704,100050.0,100040.0,0.7216]
[1738939503564,0.20131341,100050.0,100040.0,0.9214298]
[1738939503758,0.00150031,100050.0,100040.0,0.9214298]
[1738939503958,0.37304838,100070.0,100050.0,0.199799]
[1738939504161,0.37304838,100070.0,100060.0,0.3608]
[1738939504361,0.18193932,100080.0,100060.0,0.7216]
[1738939504556,0.20842524,100080.0,100070.0,0.3608]
[1738939505269,0.1997325,100090.0,100070.0,0.73383878]
[1738939505570,0.68286022,100100.0,100080.0,0.3608]
[1738939505766,0.68286022,100100.0,100090.0,0.3608]
[1738939505767,0.69148319,100100.0,100090.0,0.3608]
[1738939506154,0.69148319,100100.0,100080.0,0.3608]
[1738939506466,0.37300388,100090.0,100080.0,0.00014999]
[1738939506668,0.1997499,100080.0,100070.0,0.3608]
[1738939506864,0.4922792,100100.0,100070.0,0.3608]
[1738939507164,0.1997373,100090.0,100080.0,0.3608]
[1738939507363,0.1997373,100090.0,100070.0,0.3618]
[1738939507558,0.1997373,100090.0,100080.0,0.3608]
[1738939507761,0.19988674,100090.0,100080.0,0.3608]
[1738939508060,0.00014944,100090.0,100080.0,0.3608]
[1738939508369,0.17342332,100090.0,100080.0,0.3608]
[1738939508563,0.37315322,100090.0,100080.0,0.3608]
[1738939508866,0.37315322,100090.0,100080.0,0.3618]
[1738939508867,0.19987934,100090.0,100080.0,0.3618]
[1738939510571,0.70987934,100090.0,100080.0,0.3618]
[1738939510766,0.70987934,100090.0,100080.0,0.3628]
[1738939511070,0.51014944,100090.0,100080.0,0.3628]
[1738939511271,0.70987934,100090.0,100080.0,0.3628]
[1738939511663,0.88315322,100090.0,100080.0,0.3628]
[1738939511865,0.70987934,100090.0,100080.0,0.3628]
[1738939513067,0.51014944,100090.0,100080.0,0.5625498]
[1738939513271,0.51014944,100090.0,100080.0,0.73582368]
[1738939513461,0.00014944,100090.0,100080.0,0.73582368]
[1738939514277,0.19987934,100090.0,100080.0,0.3628]
[1738939514460,0.37315322,100090.0,100080.0,0.3628]
[1738939514772,0.19987934,100090.0,100080.0,0.002]
[1738939515168,0.19987934,100090.0,100080.0,0.3628]
[1738939515369,0.19987934,100090.0,100080.0,0.002]
[1738939515576,0.37315322,100090.0,100080.0,0.002]
[1738939515770,0.1997498,100080.0,100070.0,0.36094999]
[1738939515973,0.00056001,100090.0,100070.0,0.3693928]
[1738939516273,0.25799969,100100.0,100090.0,0.1997299]
[1738939516475,0.10149969,100100.0,100090.0,0.5605299]
[1738939516670,0.01060001,100120.0,100090.0,0.74175388]
[1738939516871,0.01,100120.0,100110.0,1.09456388]
[1738939518266,0.35929391,100150.0,100110.0,1.09456388]
[1738939518267,0.17740582,100150.0,100130.0,0.1996371]
[1738939518572,0.37701612,100150.0,100140.0,0.17327388]
[1738939518880,0.37701612,100150.0,100140.0,0.3608]
[1738939519063,0.1996302,100140.0,100130.0,0.00014999]
[1738939519269,0.17327388,100140.0,100110.0,0.37013165]
[1738939519467,0.1996701,100120.0,100110.0,0.00933165]
[1738939519776,0.1996701,100120.0,100090.0,0.53657223]
[1738939519777,0.1997099,100100.0,100090.0,0.53657223]
[1738939520072,0.1996537,100130.0,100100.0,0.1996918]
[1738939520280,0.002,100120.0,100110.0,0.5614743]
[1738939520577,0.002,100120.0,100110.0,0.9222743]
[1738939521076,0.1996701,100120.0,100110.0,0.7216]
[1738939522082,0.1996701,100120.0,100110.0,0.3608]
[1738939522472,1.1315235,100130.0,100110.0,0.73375968]
[1738939522677,1.13100349,100130.0,100120.0,0.3608]
[1738939523384,0.1996701,100120.0,100110.0,0.36156]
[1738939523575,0.2006701,100120.0,100110.0,0.3618]
[1738939524081,0.2026701,100120.0,100110.0,0.3618]
[1738939524472,0.1996701,100120.0,100110.0,0.3608]
[1738939524671,0.1996701,100120.0,100110.0,0.3108]
[1738939525276,0.002,100120.0,100110.0,0.3618]
[1738939525577,0.002,100120.0,100110.0,0.001]
[1738939525578,0.20167,100120.0,100110.0,0.001]
[1738939525785,0.33752387,100130.0,100110.0,0.3608]
[1738939526089,0.003,100120.0,100110.0,0.73375728]
[1738939526381,0.003,100120.0,100110.0,1.09455728]
[1738939526775,0.002,100120.0,100110.0,1.09455728]
[1738939526977,0.003,100120.0,100110.0,1.09455728]
[1738939527375,0.001,100120.0,100110.0,1.09455728]
[1738939527584,0.00014999,100130.0,100110.0,0.89587388]
[1738939527585,0.00114999,100130.0,100110.0,0.89587388]
[1738939527883,0.20180009,100130.0,100120.0,0.3608]
[1738939528081,0.20080009,100130.0,100120.0,0.3608]
[1738939528581,0.19967,100120.0,100110.0,0.37134883]
[1738939528788,0.00214999,100130.0,100110.0,0.37054883]
[1738939528974,0.19967,100120.0,100110.0,0.37054883]
[1738939529177,0.19969,100110.0,100100.0,0.00014999]
[1738939529485,0.51519,100110.0,100100.0,0.00014999]
[1738939529692,0.51519,100110.0,100100.0,0.36094999]
[1738939530275,0.51519,100110.0,100100.0,0.00014999]
[1738939530585,0.51519,100110.0,100100.0,0.00114999]
[1738939530586,1.05026388,100110.0,100100.0,0.00114999]
[1738939530786,0.68946388,100110.0,100100.0,0.00114999]
[1738939531086,0.1997135,100100.0,100080.0,0.5605491]